bitfinex/quotes_ETHUSD_20241124
["timestamp","ask_amount","ask_price","bid_price","bid_amount"]
[1732451808453,0.0300834,3312.0,3311.8,0.1]
[1732451808668,3.09669949,3312.0,3311.2,0.1]
[1732451808958,3.01968,3311.7,3311.2,0.09641746]
[1732451809165,0.0300834,3311.7,3311.3,0.09641746]
[1732451809325,0.0300834,3311.8,3311.6,0.09641746]
[1732451809527,3.01959,3311.7,3311.3,0.09641746]
[1732451809827,0.0300834,3311.8,3311.6,0.09641746]
[1732451810035,3.01968,3311.7,3311.4,0.09641746]
[1732451810244,3.0497734,3311.6,3311.4,0.09641746]
[1732451810416,0.9007,3311.9,3311.8,0.09476142]
[1732451810626,0.90493325,3312.3,3312.1,0.09476142]
[1732451810851,3.0192,3312.2,3311.8,0.09476142]
[1732451811064,3.0192,3312.2,3312.0,0.09476142]
[1732451811065,0.04789756,3312.2,3312.0,0.09476142]
[1732451811357,0.04789756,3312.2,3311.8,0.09476142]
[1732451811358,0.0300834,3312.1,3311.8,0.09476142]
[1732451811559,0.04824627,3312.0,3311.4,0.09476142]
[1732451811721,3.01977,3311.5,3311.1,0.09476142]
[1732451811929,0.07833323,3311.4,3311.1,0.09476142]
[1732451812747,3.02005,3311.2,3311.1,0.09476142]
[1732451813050,3.02005,3311.2,3310.6,0.09476142]
[1732451813051,3.0205,3310.7,3310.6,0.09476142]
[1732451813246,3.02096,3310.2,3310.1,0.09476142]
[1732451813481,3.02114,3310.0,3309.6,0.09476142]
[1732451813652,3.0512234,3310.0,3309.6,0.09476142]
[1732451814031,3.0512234,3310.0,3309.8,0.09476142]
[1732451814032,0.04820714,3310.0,3309.8,0.09476142]
[1732451814289,3.09943054,3310.0,3309.8,0.09476142]
[1732451814463,6.09060714,3310.0,3309.8,0.09476142]
[1732451815184,6.09060714,3310.0,3309.4,0.09476142]
[1732451815185,9.11174714,3310.0,3309.4,0.09476142]
[1732451815338,10.56244714,3310.0,3308.9,0.09476142]
[1732451815672,10.56244714,3310.0,3309.3,0.09476142]
[1732451815975,10.01244714,3310.0,3309.6,0.09476142]
[1732451816174,10.01244714,3310.0,3309.8,0.09476142]
[1732451816175,6.09060714,3310.0,3309.8,0.09476142]
[1732451816468,6.08950287,3310.0,3309.8,0.09476142]
[1732451816772,6.08950287,3310.0,3309.9,2.5647555]
[1732451816945,6.08950287,3310.0,3309.9,0.1477655]
[1732451817565,9.11064287,3310.0,3309.9,0.1477655]
[1732451817776,10.01134287,3310.0,3309.9,0.1477655]
[1732451818775,3.0,3309.0,3308.9,0.09476142]
[1732451818934,3.0,3309.7,3309.6,0.09476142]
[1732451819135,12.11092287,3309.7,3309.6,0.09476142]
[1732451819586,3.0219,3309.2,3309.1,0.09476142]
[1732451819795,3.0219,3309.2,3309.0,0.09476142]
[1732451819796,9.06427,3309.2,3309.0,0.09476142]
[1732451819947,6.0424,3309.2,3309.0,0.09476142]
[1732451820151,0.04710287,3309.1,3309.0,0.09476142]
[1732451820352,6.08950287,3309.1,3309.0,0.09476142]
[1732451820751,6.08950287,3309.1,3309.0,3.40290142]
[1732451820947,6.0424,3309.1,3309.0,3.74319156]
[1732451821291,2.87e-06,3309.1,3309.0,7.94319156]
[1732451821593,0.0300834,3311.3,3311.1,0.09476142]
[1732451821801,6.0401,3311.2,3310.3,0.03020635]
[1732451821954,6.0401,3311.2,3311.1,3.30661]
[1732451821955,6.08563277,3311.2,3311.1,3.30661]
[1732451822294,1.55554277,3311.2,3311.1,3.878891]
[1732451822586,0.0300834,3313.0,3312.2,2.41531]
[1732451822820,0.0300834,3313.0,3312.2,3.30581]
[1732451823139,0.59745078,3314.0,3312.2,3.30581]
[1732451823140,0.9007,3314.4,3312.8,0.1]
[1732451823300,0.31430621,3314.9,3312.2,1.49281384]
[1732451823301,0.0300834,3314.3,3313.4,2.41438]
[1732451823452,0.04359868,3314.3,3313.0,0.8905]
[1732451823649,0.0300834,3314.3,3313.0,0.8905]
[1732451823848,0.9007,3314.9,3313.6,2.41427]
[1732451823849,0.04359868,3314.2,3313.6,2.41427]
[1732451824050,0.04359868,3314.2,3313.1,0.03017879]
[1732451824256,3.01735,3314.2,3313.0,0.8905]
[1732451824567,0.07368208,3314.1,3313.2,2.41455]
[1732451824783,0.07368208,3314.1,3313.1,4.0]
[1732451824784,0.04359868,3314.1,3313.1,4.0]
[1732451824957,0.04359868,3314.1,3313.1,4.03017885]
[1732451825150,0.0300834,3314.8,3313.8,2.41414]
[1732451825403,0.04359868,3314.7,3313.8,2.40297487]
[1732451825568,3.0462234,3315.5,3313.9,0.8937]
[1732451825898,3.0462234,3315.5,3313.8,0.03017524]
[1732451825899,0.871,3314.5,3313.1,3.57445228]
[1732451826203,3.01787,3313.6,3313.1,3.57445228]
[1732451826382,0.03773106,3314.1,3313.1,3.57445228]
[1732451826552,42.15513448,3314.9,3313.1,3.57445228]
[1732451826553,0.04359868,3313.5,3313.4,2.41443]
[1732451826750,39.0,3314.9,3313.4,4.1]
[1732451826951,3.01686,3314.7,3313.4,4.0]
[1732451827191,0.41536578,3315.6,3313.4,4.0]
[1732451827192,0.41536578,3315.6,3313.5,0.0151874]
[1732451827398,0.03771286,3315.6,3314.6,2.41349]
[1732451827604,42.01578,3315.9,3315.0,2.41321]
[1732451827605,0.03771286,3315.8,3315.0,2.41321]
[1732451827766,39.0,3315.9,3315.2,2.41305]
[1732451827953,3.0161,3315.6,3315.0,0.8937]
[1732451828159,0.59166814,3316.8,3314.1,2.41386]
[1732451828160,0.90871023,3315.5,3314.1,2.41386]
[1732451828378,0.90871023,3315.5,3313.7,4.8937]
[1732451828379,3.01622,3315.4,3313.7,4.8937]
[1732451828690,3.01622,3315.4,3312.4,0.1]
[1732451828691,3.01713,3314.5,3313.4,2.41441]
[1732451828874,0.03772394,3314.4,3313.4,2.41441]
[1732451829081,0.03772394,3314.4,3313.0,0.8937]
[1732451829082,0.90872394,3314.4,3313.0,3.30842]
[1732451829266,3.01751,3314.0,3313.1,4.0]
[1732451829469,0.55,3313.8,3313.1,4.0]
[1732451829792,0.55,3313.4,3313.1,4.0]
[1732451829998,0.871,3314.4,3312.4,0.8937]
[1732451829999,0.55,3313.1,3312.4,0.8937]
[1732451830157,0.55,3312.9,3311.9,0.8937]
[1732451830498,0.55,3312.7,3312.2,4.0]
[1732451830704,3.01904,3312.4,3312.2,4.0]
[1732451830859,4.44005,3312.3,3312.2,3.45]
[1732451831060,3.01923,3312.1,3310.8,0.01523381]
[1732451831254,7.4571,3312.3,3310.8,4.0]
[1732451831255,3.01954,3311.8,3310.8,4.0]
[1732451831461,6.0361,3311.7,3310.8,4.0]
[1732451831971,6.0361,3311.7,3311.0,2.11416]
[1732451832299,6.0361,3311.7,3311.0,2.129408]
[1732451832499,6.0361,3311.7,3310.8,0.015248]
[1732451832715,3.0,3311.4,3310.5,4.0]
[1732451833003,3.0,3311.4,3310.3,2.11458]
[1732451833004,0.55,3311.0,3310.3,2.11458]
[1732451833219,0.55,3311.0,3310.4,2.11453]
[1732451833361,0.55,3311.0,3310.4,0.01526442]
[1732451833562,0.58775143,3311.2,3310.1,6.11473]
[1732451833762,0.58775143,3311.2,3310.4,0.8937]
[1732451833763,6.0361,3311.1,3310.4,0.8937]
[1732451834005,0.55,3311.0,3310.4,0.8937]
[1732451834205,6.0361,3310.9,3310.4,0.8937]
[1732451834359,0.58775783,3310.8,3310.1,4.0]
[1732451834559,0.55,3310.6,3310.1,4.0]
[1732451834799,0.55,3310.4,3310.1,4.0]
[1732451835002,3.07096,3310.2,3310.1,4.0]
[1732451835206,3.07096,3310.2,3308.8,0.90897999]
[1732451835207,3.57125,3309.9,3308.8,0.90897999]
[1732451835373,6.5861,3310.2,3309.0,4.0]
[1732451835374,0.55,3309.7,3309.0,4.0]
[1732451835710,0.55,3309.5,3309.0,4.0]
[1732451835929,0.55,3309.3,3308.8,0.8937]
[1732451836082,6.0361,3309.2,3308.8,0.8937]
[1732451836418,3.57197,3309.1,3308.6,1.47172346]
[1732451836588,0.55,3308.9,3308.7,4.0]
[1732451837091,3.57233,3308.7,3308.6,1.47172346]
[1732451837487,9.64621314,3308.7,3308.6,1.42172346]
[1732451837707,9.64621314,3308.7,3308.6,1.27172346]
[1732451837879,9.60843,3308.7,3308.6,1.27172346]
[1732451838221,9.65079089,3308.7,3308.6,0.72172346]
[1732451838668,12.65079089,3308.7,3308.6,0.06766157]
[1732451838820,3.02288,3308.1,3308.0,0.01735]
[1732451839020,9.05898,3308.1,3308.0,0.01735]
[1732451839477,6.07846089,3308.1,3308.0,0.01735]
[1732451839935,9.10134089,3308.1,3308.0,0.01735]
[1732451840258,6.07846089,3308.1,3308.0,0.01735]
[1732451840470,6.62846089,3308.1,3308.0,0.01735]
[1732451840769,6.07846089,3308.1,3308.0,0.01735]
[1732451840963,6.07846089,3308.1,3308.0,2.13343]
[1732451841171,3.0215,3309.7,3308.0,0.230693]
[1732451841374,0.03623132,3309.6,3308.7,0.1]
[1732451841557,39.871,3311.1,3309.3,0.1]
[1732451841740,6.07813132,3311.0,3310.1,2.1147]
[1732451842074,3.02078,3310.4,3309.4,0.8937]
[1732451842274,3.02063,3310.6,3309.4,3.00885]
[1732451842433,3.02082,3310.4,3309.4,0.8937]
[1732451842633,6.0419,3310.3,3309.7,4.0]
[1732451842869,6.0419,3310.3,3309.8,2.11493]
[1732451843080,0.03623132,3310.2,3309.7,4.0]
[1732451843234,3.02133,3309.8,3309.7,4.0]
[1732451843637,3.02133,3309.8,3308.0,0.230693]
[1732451843638,3.02217,3308.9,3308.0,0.01735]
[1732451843985,0.9795,3309.7,3308.2,4.0]
[1732451843986,6.07968008,3308.8,3308.2,4.0]
[1732451844137,3.0227,3308.3,3308.2,4.0]
[1732451844338,3.02288,3308.1,3308.0,0.01735]
[1732451844541,12.13880566,3308.1,3308.0,0.01735]
[1732451844841,6.07813132,3308.1,3308.0,0.01735]
[1732451845044,9.10101132,3308.1,3308.0,0.01735]
[1732451845480,6.07813132,3308.1,3308.0,0.01735]
[1732451845859,6.07813132,3308.1,3308.0,3.11353]
[1732451846004,6.07813132,3308.1,3308.0,3.424883]
[1732451846203,6.0419,3308.1,3308.0,0.01735]
[1732451846566,6.07813132,3308.1,3308.0,0.01735]
[1732451846762,6.1159197,3308.1,3308.0,0.01735]
[1732451847006,9.1387997,3308.1,3308.0,0.01735]
[1732451847174,12.10101132,3308.1,3308.0,0.01735]
[1732451847385,13.08051132,3308.1,3308.0,0.01735]
[1732451847564,10.08051132,3308.1,3308.0,0.01735]
[1732451847764,7.05763132,3308.1,3308.0,0.01735]
[1732451847969,10.08051132,3308.1,3308.0,0.01735]
[1732451848199,10.63051132,3308.1,3308.0,0.01735]
[1732451848391,7.05763132,3308.1,3306.8,2.11685]
[1732451848604,6.07813132,3308.1,3307.3,1.96652]
[1732451848806,0.03779291,3308.0,3307.1,2.1166]
[1732451849005,6.0419,3307.9,3306.8,2.34330655]
[1732451849213,6.0419,3307.9,3306.9,2.11677]
[1732451849214,6.0764165,3307.9,3306.9,2.11677]
[1732451849377,0.03779677,3307.8,3307.0,4.0]
[1732451851318,0.03453796,3306.7,3306.1,4.0]
[1732451851471,0.07234777,3306.7,3306.1,4.0]
[1732451851678,6.0419,3306.6,3306.1,4.0]
[1732451851994,3.02462,3306.2,3306.1,4.0]
[1732451852191,6.0419,3306.2,3306.1,4.0]
[1732451852395,6.07629842,3306.2,3306.1,4.0]
[1732451852576,9.10091842,3306.2,3306.1,3.16425183]
[1732451852776,10.08041842,3306.2,3306.1,3.16425183]
[1732451853031,10.08041842,3306.2,3306.0,0.0027655]
[1732451853032,6.07629842,3306.2,3306.0,0.0027655]
[1732451853175,6.07629842,3306.2,3306.1,2.11729]
[1732451853385,6.07629842,3306.2,3306.1,2.32929555]
[1732451853590,6.0419,3306.2,3306.0,0.0027655]
[1732451853800,0.07201525,3306.1,3306.0,0.0027655]
[1732451854004,6.11391839,3306.1,3306.0,0.0027655]
[1732451854224,6.07610515,3306.1,3306.0,0.0027655]
[1732451854790,6.07610515,3306.1,3306.0,2.1201255]
[1732451855138,0.9654,3308.0,3306.3,2.11715]
[1732451855428,0.02606894,3308.6,3307.2,2.11659]
[1732451855642,0.02606894,3308.6,3308.2,0.9689]
[1732451855790,0.02606894,3308.6,3308.2,3.08485]
[1732451856021,0.02606894,3308.6,3308.4,2.21582]
[1732451856022,6.07940515,3308.5,3308.4,2.21582]
[1732451856242,3.02077,3310.5,3308.4,2.21582]
[1732451856243,3.02063,3310.6,3308.7,0.9689]
[1732451856462,6.0429,3310.5,3308.8,0.11528466]
[1732451856742,6.0429,3310.5,3309.6,2.11504]
[1732451856900,3.02134,3309.8,3308.7,4.9689]
[1732451857106,6.0429,3310.5,3309.6,2.115]
[1732451857428,3.0216,3309.5,3308.7,4.0]
[1732451857600,0.03777883,3309.4,3308.7,4.0]
[1732451858032,3.02178,3309.3,3308.7,4.0]
[1732451858236,6.0429,3309.2,3308.7,4.0]
[1732451858703,3.02206,3309.0,3307.6,0.9689]
[1732451859024,0.55,3308.8,3307.8,4.0]
[1732451859200,9.10284891,3308.9,3308.2,0.9689]
[1732451859201,6.0429,3308.9,3308.2,0.9689]
[1732451859402,6.0429,3308.9,3308.2,3.08484]
[1732451859704,6.0429,3308.9,3308.2,0.9689]
[1732451860008,6.0429,3308.9,3308.2,3.08483]
[1732451860216,6.0429,3308.9,3308.6,2.11563]
[1732451860449,6.0429,3308.9,3308.2,0.9689]
[1732451860627,6.0429,3308.9,3308.8,2.11557]
[1732451861378,6.0429,3308.9,3308.4,4.0]
[1732451861379,6.0429,3308.9,3308.5,2.11576]
[1732451861552,6.0429,3308.9,3308.4,4.0]
[1732451862142,0.03447058,3308.8,3308.4,4.0]
[1732451862344,0.07225402,3308.8,3308.4,4.0]
[1732451862597,6.0429,3308.7,3307.5,3.08528]
[1732451862880,3.02315,3307.8,3307.7,4.0]
[1732451863088,9.06605,3307.8,3307.7,4.0]
[1732451863424,9.06605,3307.8,3305.9,3.08632]
[1732451863425,3.02354,3307.4,3305.9,3.08632]
[1732451863603,6.08070764,3307.3,3306.0,0.0027655]
[1732451863891,3.0237,3307.2,3306.1,4.0]
[1732451864087,0.55,3307.0,3306.1,4.0]
[1732451864284,3.02462,3306.2,3306.1,4.0]
[1732451864444,3.02426,3306.6,3306.1,4.0]
[1732451864663,3.02443,3306.4,3306.1,4.0]
[1732451864872,6.08071189,3306.5,3306.1,4.0]
[1732451864873,6.0429,3306.3,3306.1,4.0]
[1732451865193,0.03447058,3306.2,3306.0,0.0027655]
[1732451865363,6.0429,3306.3,3306.0,0.0027655]
[1732451865548,6.0807143,3306.3,3306.0,0.0027655]
[1732451865749,0.03447058,3306.2,3306.0,0.0027655]
[1732451865944,6.0429,3306.1,3306.0,0.0027655]
[1732451866244,6.07737058,3306.1,3306.0,0.0027655]
[1732451866866,6.07737058,3306.1,3306.0,2.33214505]
[1732451867068,6.07737058,3306.1,3306.0,3.49064505]
[1732451867289,6.0429,3306.1,3306.0,2.1201255]
[1732451867449,6.0429,3306.1,3306.0,4.0027655]
[1732451867645,6.07737058,3306.1,3306.0,4.0027655]
[1732451867849,6.0429,3306.1,3306.0,4.0027655]
[1732451868148,6.07737058,3306.1,3306.0,6.1201255]
[1732451868348,6.07737058,3306.1,3306.0,6.52040205]
[1732451868596,6.0429,3306.1,3306.0,6.1201255]
[1732451868744,6.07737058,3306.1,3306.0,7.2786255]
[1732451869349,6.07737058,3306.1,3306.0,4.0027655]
[1732451869949,6.07737058,3306.1,3306.0,7.67890205]
[1732451870288,6.0429,3306.1,3306.0,7.67890205]
[1732451870594,0.03353351,3306.1,3306.0,7.77890205]
[1732451870803,9.86e-06,3306.4,3306.3,2.11717]
[1732451871000,0.00446661,3307.3,3306.3,2.11717]
[1732451871001,0.00446661,3307.3,3307.2,3.27509]
[1732451871851,0.00446661,3307.3,3307.2,4.0]
[1732451872250,0.03643885,3307.3,3307.2,4.0]
[1732451872649,3.06004885,3307.3,3307.2,4.0]
[1732451873400,3.06004885,3307.3,3306.0,0.0027655]
[1732451873401,3.0239,3307.0,3306.0,0.0027655]
[1732451873550,0.03187921,3306.9,3306.3,4.0]
[1732451873755,0.03780415,3306.9,3306.3,4.0]
[1732451873996,0.03187563,3306.8,3306.3,4.0]
[1732451874167,0.03780448,3307.0,3306.3,4.0]
[1732451874365,3.05593563,3306.9,3306.3,4.0]
[1732451874599,1.105,3306.8,3306.3,4.0]
[1732451874766,0.06954714,3306.7,3306.3,4.0]
[1732451874974,0.03173964,3306.7,3306.3,4.0]
[1732451875268,1.105,3306.8,3306.0,2.1201055]
[1732451875488,6.0489,3306.7,3306.0,0.0027655]
[1732451875678,6.08056447,3306.7,3306.0,4.0027655]
[1732451876174,9.10477447,3306.7,3306.0,4.0027655]
[1732451876379,6.08056447,3306.7,3306.0,4.0027655]
[1732451876577,3.02425,3306.6,3306.0,4.0027655]
[1732451876787,6.08056089,3306.5,3306.0,4.0027655]
[1732451876988,3.02471,3306.1,3306.0,4.0027655]
[1732451877214,9.07361,3306.1,3306.0,4.0027655]
[1732451877499,9.10527089,3306.1,3306.0,4.0027655]
[1732451877662,9.10527089,3306.1,3306.0,0.0027655]
[1732451877866,6.08056089,3306.1,3306.0,0.0027655]
[1732451878367,6.08056089,3306.1,3306.0,2.33214605]
[1732451878597,6.0489,3306.1,3306.0,2.33214605]
[1732451878815,6.07930286,3306.1,3306.0,2.33214605]
[1732451879106,6.07930286,3306.1,3306.0,3.43094605]
[1732451879408,0.04226976,3307.3,3307.2,2.11659]
[1732451879605,0.04226976,3307.3,3306.3,2.11717]
[1732451879606,0.00446661,3307.3,3307.0,3.21547]
[1732451879820,0.00446661,3307.3,3307.2,2.11659]
[1732451880378,42.02138,3309.8,3308.0,3.21485]
[1732451880379,1.105,3309.4,3308.0,3.21485]
[1732451880584,39.0,3309.8,3309.3,2.11525]
[1732451880585,0.03777973,3309.7,3309.3,2.11525]
[1732451880931,39.0,3309.8,3300.1,10.3617618]
[1732451880932,6.0432,3309.6,3300.1,10.3617618]
[1732451881139,4.3197045,3309.5,3309.4,2.11518]
[1732451881279,0.1,3309.1,3308.4,1.81352]
[1732451881479,0.1,3309.1,3304.8,1.52475159]
[1732451881480,4.30012171,3308.6,3308.5,1.8135]
[1732451881704,9.47589116,3308.6,3308.5,1.8135]
[1732451882239,3.37746215,3308.6,3308.5,1.8135]
[1732451882404,1.22876641,3308.6,3308.5,1.8135]
[1732451882594,1.22885334,3308.7,3308.5,1.8135]
[1732451882797,3.07191604,3309.2,3308.5,2.176191]
[1732451883036,2.45758408,3309.4,3309.2,1.81312]
[1732451883304,2.45758408,3309.4,3309.3,1.81307]
[1732451883641,0.1,3311.1,3310.9,1.81216]
[1732451883839,3.68595604,3311.3,3309.6,3.0]
[1732451883998,0.3685956,3311.2,3310.4,1.81246]
[1732451884203,0.3685956,3311.2,3310.7,2.9593]
[1732451884413,0.1,3311.8,3311.2,1.81202]
[1732451884631,0.1,3312.0,3310.9,1.81218]
[1732451884934,0.4756956,3312.1,3311.6,1.81177]
[1732451885142,0.1,3312.5,3311.3,1.81194]
[1732451885295,0.1,3312.6,3311.8,1.147]
[1732451885502,0.1,3313.1,3312.6,1.81124]
[1732451885843,0.1477655,3313.3,3311.8,1.147]
[1732451885844,0.1477655,3313.3,3312.1,3.0]
[1732451885997,0.1477655,3313.3,3311.9,3.0]
[1732451886198,0.1477655,3313.3,3311.8,1.147]
[1732451886199,0.03135947,3313.2,3312.9,1.81107]
[1732451886399,0.1477655,3313.3,3313.1,1.81099]
[1732451886599,0.03135947,3313.2,3313.0,1.147]
[1732451886830,0.1477655,3313.3,3313.0,1.147]
[1732451887040,0.1477655,3313.3,3312.2,1.81148]
[1732451887239,8.99,3313.2,3312.6,1.81121]
[1732451887447,8.99,3313.2,3312.4,4.0]
[1732451887650,0.03135947,3313.1,3312.6,1.81126]
[1732451887809,0.03135947,3313.1,3313.0,1.81104]
[1732451888003,0.03135947,3313.1,3312.6,2.0]
[1732451888207,0.03135947,3313.1,3312.8,4.0]
[1732451888417,0.13135947,3313.1,3312.8,4.0]
[1732451888748,0.03135947,3313.1,3312.8,4.0]
[1732451888953,0.2,3312.7,3312.6,2.0]
[1732451889248,0.23191351,3312.7,3312.6,6.0]
[1732451889449,3.15059351,3312.7,3312.6,6.0]
[1732451889607,3.15059351,3312.7,3312.6,1.01233722]
[1732451889806,7.77159351,3312.7,3312.6,7.22e-06]
[1732451890006,7.77159351,3312.7,3308.9,1.81327]
[1732451890007,0.1,3310.5,3309.8,1.81274]
[1732451890251,8.99,3310.4,3310.2,4.0]
[1732451890610,8.99,3310.4,3310.3,1.81252]
[1732451891037,8.99,3310.4,3310.2,4.0]
[1732451891207,0.1,3310.3,3310.2,4.0]
[1732451891427,0.2,3310.3,3310.2,4.0]
[1732451891944,8.99,3310.4,3309.2,1.5109]
[1732451891945,8.99,3310.4,3310.0,1.51053]
[1732451892148,0.1,3310.2,3309.1,1.147]
[1732451892352,0.1,3310.2,3309.3,4.0]
[1732451892353,0.1,3309.7,3309.3,4.0]
[1732451892554,0.1,3310.0,3308.7,1.51115]
[1732451892709,3.47905,3310.1,3309.5,1.51079]
[1732451892909,0.1,3309.9,3308.8,2.65809]
[1732451893109,0.1,3309.9,3308.5,1.51121]
[1732451893110,0.2,3309.5,3307.8,1.147]
[1732451893307,0.2,3309.5,3308.3,1.51133]
[1732451893308,3.47905,3309.4,3308.3,1.51133]
[1732451893532,0.1,3309.2,3307.8,1.32313157]
[1732451893732,0.1,3308.2,3307.8,1.147]
[1732451893937,3.47905,3308.1,3307.8,1.147]
[1732451894151,3.47905,3308.1,3306.0,1.5124]
[1732451894463,3.47905,3308.1,3306.4,4.61606471]
[1732451894464,0.1,3307.8,3306.4,4.61606471]
[1732451894616,0.1,3307.6,3306.4,4.0]
[1732451894827,0.1,3307.1,3306.4,4.0]
[1732451895023,3.47905,3307.0,3306.4,4.0]
[1732451895528,3.47905,3307.0,3306.6,1.51212]
[1732451896061,3.47905,3307.0,3306.4,4.0]
[1732451896262,3.57905,3307.0,3306.4,4.0]
[1732451896469,3.47905,3307.0,3306.5,1.51217]
[1732451896765,3.14232307,3309.3,3306.4,4.4]
[1732451896766,3.47905,3306.9,3306.8,1.51203]
[1732451896923,3.47905,3307.9,3307.5,1.51168]
[1732451897116,3.47905,3307.8,3307.5,1.51168]
[1732451897375,3.47905,3307.8,3306.8,1.488212]
[1732451897673,3.47905,3307.7,3307.4,1.51172]
[1732451897839,3.47905,3307.7,3307.3,1.51176]
[1732451898037,0.02751319,3307.6,3306.8,1.1858]
[1732451898226,3.47905,3307.7,3306.8,2.69781]
[1732451898425,0.02751319,3307.6,3306.8,2.69782]
[1732451898748,3.47905,3307.7,3306.8,1.455582]
[1732451898921,3.47905,3307.7,3307.2,1.51183]
[1732451899256,3.47905,3307.7,3306.8,2.69779]
[1732451899471,3.47905,3307.7,3307.5,1.5117]
[1732451899769,3.0,3309.4,3307.5,1.5117]
[1732451899770,3.47905,3307.6,3307.5,1.51171]
[1732451899970,3.47905,3308.8,3308.2,1.51135]
[1732451900145,3.47905,3308.7,3308.2,1.51135]
[1732451900466,3.47905,3308.7,3308.0,3.0]
[1732451900662,0.03777468,3309.9,3307.6,1.336971]
[1732451900663,3.47905,3309.3,3308.4,1.1858]
[1732451900867,3.47905,3309.3,3308.4,4.1858]
[1732451901234,0.1,3310.6,3309.2,1.1858]
[1732451901441,8.99,3310.5,3309.7,1.51069]
[1732451901642,8.99,3310.5,3310.3,1.5104]
[1732451901834,8.99,3310.4,3310.3,1.51043]
[1732451902037,8.99,3311.1,3310.3,1.51043]
[1732451902245,8.99,3311.1,3310.5,1.51033]
[1732451902460,8.99,3311.1,3310.0,1.1858]
[1732451902662,8.99,3311.1,3310.3,1.51043]
[1732451902828,8.99,3311.1,3310.2,1.51047]
[1732451903021,8.99,3311.1,3310.0,1.1858]
[1732451903022,9.09,3311.1,3310.0,1.1858]
[1732451903275,0.1,3310.4,3308.6,1.51117]
[1732451903451,8.99,3310.3,3309.3,1.51087]
[1732451903622,0.1,3310.2,3309.4,1.5108]
[1732451903825,0.1,3310.2,3309.5,1.1858]
[1732451904026,8.99,3310.3,3309.5,1.1858]
[1732451904264,0.2,3310.0,3309.1,1.51097]
[1732451904488,0.1,3309.8,3309.0,1.51101]
[1732451904765,0.1,3309.8,3307.9,2.69733]
[1732451904766,0.1,3308.8,3307.9,2.69733]
[1732451904965,1.20596452,3309.8,3307.9,1.1858]
[1732451904966,8.99,3308.7,3307.9,1.1858]
[1732451905171,8.99,3308.7,3308.6,1.51121]
[1732451905370,8.99,3308.7,3307.9,1.1858]
[1732451905371,0.1,3309.2,3308.3,1.51131]
[1732451905541,0.1,3309.4,3308.9,1.51107]
[1732451905748,8.99,3309.3,3309.2,2.69673]
[1732451906375,8.99,3309.8,3309.7,1.51071]
[1732451906690,8.99,3310.5,3309.4,3.0]
[1732451906993,8.99,3310.5,3310.4,1.51039]
[1732451907144,8.99,3311.0,3310.9,1.51012]
[1732451907331,8.99,3311.0,3310.7,1.51022]
[1732451907332,8.99,3311.5,3310.4,1.1757]
[1732451907528,3.01869,3312.7,3310.4,1.1757]
[1732451907529,8.99,3311.4,3311.3,1.50997]
[1732451907728,8.99,3312.0,3311.8,1.50972]
[1732451907935,0.1,3312.8,3311.6,1.1757]
[1732451908168,8.99,3312.7,3311.6,1.1757]
[1732451908476,8.99,3312.7,3311.6,2.68554]
[1732451908477,0.1,3312.6,3311.6,2.68554]
[1732451908773,8.99,3312.7,3312.3,1.50952]
[1732451908931,0.1,3312.7,3311.6,1.444254]
[1732451909136,8.99,3312.6,3312.1,1.50957]
[1732451909676,8.99,3312.6,3312.3,1.50951]
[1732451909879,0.1,3312.5,3311.9,1.5097]
[1732451910178,0.1,3311.8,3310.6,1.1757]
[1732451910387,0.1,3311.6,3311.1,1.51006]
[1732451910538,0.2,3311.6,3310.8,1.51017]
[1732451910733,0.2,3311.6,3309.5,0.36938934]
[1732451910734,0.1,3311.0,3310.4,1.51038]
[1732451910932,3.0191,3312.3,3310.2,1.51044]
[1732451910933,0.1,3310.7,3310.2,1.51044]
[1732451911128,0.1,3310.8,3310.0,1.51056]
[1732451911129,0.1,3310.5,3310.0,1.51056]
[1732451911355,0.2,3310.0,3309.3,1.51088]
[1732451911573,8.99,3309.9,3309.4,1.5108]
[1732451911740,8.99,3309.9,3308.9,1.1757]
[1732451911946,9.19,3309.9,3308.9,1.1757]
[1732451912285,8.99,3309.9,3309.8,1.51066]
[1732451912492,8.99,3309.9,3309.6,1.51074]
[1732451912769,8.99,3309.9,3309.8,1.51066]
[1732451913177,8.99,3310.8,3310.4,1.51039]
[1732451913380,9.09,3311.2,3310.5,1.51031]
[1732451913637,9.09,3311.2,3310.3,1.1757]
[1732451913638,0.1,3311.1,3310.6,1.51025]
[1732451913784,0.1,3311.1,3310.3,1.1757]
[1732451913785,0.2,3311.1,3310.7,1.51021]
[1732451913942,0.1,3311.1,3310.8,1.5102]
[1732451914286,0.1,3311.1,3310.3,1.1757]
[1732451914287,0.1,3310.8,3310.3,1.1757]
[1732451914487,0.1,3310.6,3310.2,1.51044]
[1732451914646,0.1,3310.0,3308.9,1.1757]
[1732451914845,0.1,3309.8,3308.9,1.1757]
[1732451915084,8.99,3309.7,3309.6,1.51075]
[1732451915282,0.1,3309.6,3309.1,1.51094]
[1732451915486,0.1,3309.7,3309.3,1.51087]
[1732451915659,9.09,3310.0,3308.9,1.1757]
[1732451915998,0.1,3309.6,3309.1,1.51094]
[1732451916285,0.1,3309.6,3308.0,1.207353]
[1732451916286,0.1,3309.0,3307.6,1.1757]
[1732451916459,8.99,3308.9,3308.8,1.51112]
[1732451916779,1.178,3310.5,3307.6,1.326867]
[1732451916780,0.1,3309.1,3307.6,1.326867]
[1732451916988,0.1,3309.3,3307.6,1.326867]
[1732451916989,8.99,3309.0,3308.9,1.51105]
[1732451917144,8.99,3309.0,3307.6,1.326867]